bitfinex-derivatives/quotes_SOLF0:USTF0_20250320
["timestamp","ask_amount","ask_price","bid_price","bid_amount"]
[1742495765871,7.441e-05,127.7,127.69,20.46077941]
[1742495767076,7.441e-05,127.7,127.68,7.8363]
[1742495767273,7.441e-05,127.7,127.67,0.05145918]
[1742495767274,7.441e-05,127.7,127.67,12.67623859]
[1742495767674,7.441e-05,127.7,127.69,7.836]
[1742495771681,7.441e-05,127.7,127.69,20.46077941]
[1742495772784,14.81577941,127.77,127.74,7.8329]
[1742495772986,28.06,127.76,127.74,7.8329]
[1742495773577,35.8917,127.76,127.74,7.8329]
[1742495773776,28.06,127.76,127.74,7.8329]
[1742495774084,0.05865238,127.76,127.74,7.88260837]
[1742495774276,0.05865238,127.76,127.75,7.8323]
[1742495774277,28.11865238,127.76,127.75,7.8323]
[1742495774477,0.05865238,127.76,127.75,7.8323]
[1742495774983,0.05865238,127.76,127.75,20.45707941]
[1742495776587,5.238e-05,127.76,127.75,20.45707941]
[1742495777288,2.1577,127.81,127.75,12.62477941]
[1742495777483,28.06,127.83,127.8,12.62477941]
[1742495777680,28.06,127.83,127.75,16.76757941]
[1742495777681,28.06,127.83,127.81,12.62477941]
[1742495777981,28.06,127.83,127.82,7.828]
[1742495778188,6.3876,127.87,127.82,12.62477941]
[1742495778491,28.11422904,127.86,127.84,20.45117941]
[1742495778681,28.11422904,127.86,127.84,7.8264]
[1742495779085,28.11422904,127.86,127.83,12.68190454]
[1742495779284,28.11422904,127.86,127.83,0.05712513]
[1742495779488,0.05422904,127.86,127.83,0.05712513]
[1742495779989,7.87972904,127.86,127.83,0.05712513]
[1742495780888,7.8262,127.85,127.83,0.05712513]
[1742495781288,0.05422904,127.86,127.83,0.05712513]
[1742495782489,7.8263,127.85,127.83,0.05712513]
[1742495783688,7.8268,127.84,127.83,0.05712513]
[1742495783987,35.8668,127.84,127.83,0.05712513]
[1742495784192,28.04,127.84,127.78,26.73199619]
[1742495784391,7.8283,127.82,127.78,34.56209619]
[1742495785382,0.05591844,127.81,127.8,19.63579619]
[1742495785589,28.04,127.86,127.8,47.67579619]
[1742495785780,28.04,127.86,127.82,19.63579619]
[1742495786290,28.04,127.86,127.8,47.67579619]
[1742495786487,28.04,127.86,127.8,19.63579619]
[1742495786693,0.05921135,127.84,127.82,0.05491129]
[1742495787988,0.05921135,127.84,127.82,19.69070748]
[1742495788692,0.05921135,127.84,127.83,7.8274]
[1742495790598,0.05921135,127.84,127.82,27.51850748]
[1742495790798,0.05921135,127.84,127.82,0.05491129]
[1742495791199,0.05921135,127.84,127.82,7.88241129]
[1742495791792,0.05921135,127.84,127.83,7.8274]
[1742495792195,0.05921135,127.84,127.82,0.05491129]
[1742495794197,0.05921135,127.84,127.83,7.8274]
[1742495796400,4.2642,127.89,127.85,7.8256]
[1742495796602,28.04,127.87,127.82,19.63579619]
[1742495796801,7.8262,127.85,127.81,28.04]
[1742495797096,28.04,127.87,127.83,7.8271]
[1742495797307,7.8259,127.86,127.83,7.8271]
[1742495797601,0.05677928,127.86,127.83,0.05103894]
[1742495797995,7.8268,127.84,127.83,0.05103894]
[1742495799911,35.8668,127.84,127.83,0.05103894]
[1742495801504,28.04,127.84,127.83,0.05103894]
[1742495801702,7.8263,127.85,127.83,0.05103894]
[1742495801907,7.8263,127.85,127.83,7.87793894]
[1742495802104,37.97197928,127.86,127.83,0.05103894]
[1742495802504,37.97197928,127.86,127.84,7.8265]
[1742495803003,7.8263,127.85,127.83,0.05103894]
[1742495803401,7.8263,127.85,127.83,7.87813894]
[1742495803605,37.97197928,127.86,127.83,7.87813894]
[1742495803802,37.97197928,127.86,127.84,7.8265]
[1742495804202,7.8264,127.85,127.83,0.05103894]
[1742495804606,7.8264,127.85,127.83,7.87813894]
[1742495805211,7.8268,127.84,127.83,0.05103894]
[1742495805909,7.8265,127.85,127.83,7.87843894]
[1742495806108,7.8265,127.85,127.83,0.05103894]
[1742495806300,42.71693407,127.86,127.83,0.05103894]
[1742495807808,7.8264,127.85,127.83,7.87833894]
[1742495809008,7.8268,127.84,127.83,0.05103894]
[1742495812402,20.39765479,127.84,127.83,0.05103894]
[1742495813509,7.8268,127.84,127.83,0.05103894]
[1742495816311,20.39765479,127.84,127.83,0.05103894]
[1742495816612,20.39765479,127.84,127.8,7.829]
[1742495816613,7.829,127.81,127.78,7.0962]
[1742495816814,35.869,127.81,127.78,7.0962]
[1742495817402,7.8293,127.8,127.78,14.9263]
[1742495817711,7.8293,127.8,127.78,14.97607773]
[1742495820211,7.8298,127.79,127.78,7.14597773]
[1742495820410,20.40065479,127.79,127.78,7.14597773]
[1742495822416,7.8298,127.79,127.78,7.14597773]
[1742495823408,2.1778,127.8,127.78,14.97597773]
[1742495823714,40.66726324,127.81,127.78,7.14597773]
[1742495823916,48.49616324,127.81,127.78,7.14597773]
[1742495824713,0.05640845,127.81,127.78,7.14597773]
[1742495824918,30.152,127.85,127.8,12.57085479]
[1742495825218,12.57085479,127.84,127.81,7.8282]
[1742495825612,20.39785479,127.84,127.81,7.8282]
[1742495825815,12.57085479,127.83,127.78,19.66705479]
[1742495826111,30.152,127.85,127.78,19.66705479]
[1742495826112,12.57085479,127.8,127.78,7.0962]
[1742495826317,40.61085479,127.8,127.79,0.05257396]
[1742495826618,40.66143346,127.8,127.79,0.05257396]
[1742495827320,48.49063346,127.8,127.79,0.05257396]
[1742495829016,12.57085479,127.79,127.73,12.57085479]
[1742495829217,12.57085479,127.78,127.73,12.57085479]
[1742495829416,28.06,127.77,127.73,12.57085479]
[1742495830017,0.0552774,127.76,127.74,0.05577349]
[1742495830921,0.0552774,127.76,127.75,7.8318]
[1742495831719,0.0552774,127.76,127.75,20.40265479]
[1742495832222,7.74e-05,127.76,127.75,20.40265479]
[1742495833521,28.06,127.81,127.8,7.8292]
[1742495833724,28.06,127.82,127.78,12.57085479]
[1742495834724,28.06,127.82,127.79,0.05383946]
[1742495834725,0.05491076,127.81,127.79,0.05383946]
[1742495835027,0.05491076,127.81,127.8,7.8292]
[1742495836226,0.05491076,127.81,127.79,7.88343946]
[1742495836425,19.70766592,127.81,127.79,0.05383946]
[1742495836615,19.70766592,127.81,127.72,279.96405516]
[1742495836819,19.65275516,127.79,127.75,7.8318]
[1742495837020,28.06,127.78,127.75,7.8318]
[1742495837719,28.11718473,127.78,127.75,0.05584035]
[1742495838429,28.11718473,127.78,127.76,7.8317]
[1742495838624,28.11718473,127.78,127.75,0.05584035]
[1742495839129,28.11718473,127.78,127.77,7.8311]
[1742495840830,28.11718473,127.78,127.76,7.8314]
[1742495841035,35.94788473,127.78,127.76,7.8314]
[1742495841331,28.11718473,127.78,127.76,7.8314]
[1742495841629,28.11718473,127.78,127.77,7.8311]
[1742495842634,28.11718473,127.78,127.76,7.8313]
[1742495843140,28.11718473,127.78,127.77,7.8311]
[1742495846343,2.0382,127.83,127.8,7.8288]
[1742495846542,28.06,127.81,127.76,19.65275516]
[1742495846845,28.06,127.81,127.8,7.8292]
[1742495847345,9.866,127.83,127.8,7.8292]
[1742495847546,28.1126671,127.82,127.8,7.8292]
[1742495848036,0.0526671,127.82,127.79,0.05413107]
[1742495848542,35.9611671,127.82,127.79,7.88353107]
[1742495849147,7.8289,127.81,127.79,7.88353107]
[1742495849643,28.1326671,127.82,127.79,0.05413107]
[1742495850747,7.8292,127.8,127.79,0.05413107]
[1742495850947,19.65275516,127.8,127.73,32.3771]
[1742495851243,19.65275516,127.78,127.72,258.3]
[1742495851543,19.65275516,127.76,127.68,112.67974002]
[1742495851739,7.833,127.74,127.68,112.67974002]
[1742495851942,28.18,127.75,127.68,112.67974002]
[1742495852239,0.05317631,127.73,127.71,0.05473865]
[1742495852445,0.05317631,127.73,127.72,7.8337]
[1742495854045,0.05317631,127.73,127.71,0.05473865]
[1742495854244,28.2,127.72,127.66,258.36]
[1742495854648,36.0345,127.72,127.66,258.36]
[1742495854851,28.2,127.72,127.66,258.36]
[1742495855451,0.05697324,127.7,127.69,7.8358]
[1742495855940,0.05697324,127.7,127.68,7.88617479]
[1742495856146,28.2,127.69,127.68,0.04987479]
[1742495856540,28.2,127.69,127.68,7.88647479]
[1742495858053,28.2,127.69,127.68,0.04987479]
[1742495860750,36.036,127.69,127.68,0.04987479]
[1742495861251,28.2,127.69,127.68,0.04987479]
[1742495861852,28.2,127.69,127.68,7.88647479]
[1742495862443,36.036,127.69,127.68,0.04987479]
[1742495862850,28.2,127.69,127.68,0.04987479]
[1742495864056,36.036,127.69,127.68,0.04987479]
[1742495864758,28.2,127.69,127.68,0.04987479]
[1742495865856,28.2,127.69,127.68,7.88647479]
[1742495867255,28.2,127.69,127.68,0.04987479]
[1742495868158,28.2,127.69,127.68,7.88647479]
[1742495868458,28.2,127.69,127.68,0.04987479]
[1742495868956,36.036,127.69,127.68,0.04987479]
[1742495869158,28.2,127.69,127.68,0.04987479]
[1742495869855,28.2,127.69,127.68,7.88647479]
[1742495870457,28.2,127.69,127.68,0.04987479]
[1742495870655,36.036,127.69,127.68,0.04987479]
[1742495870959,28.2,127.69,127.68,0.04987479]
[1742495871158,28.2,127.69,127.68,7.88647479]
[1742495874059,28.2,127.69,127.68,0.04987479]
[1742495874962,28.2,127.69,127.68,7.88647479]
[1742495876857,0.05697324,127.7,127.69,7.836]
[1742495877053,28.15697324,127.7,127.69,7.836]
[1742495879664,0.05697324,127.7,127.69,7.836]
[1742495887967,0.05697324,127.7,127.68,7.88607479]
[1742495888466,7.89257324,127.7,127.68,7.88607479]
[1742495889461,12.5977112,127.69,127.63,29.35129475]
[1742495889663,12.5977112,127.67,127.63,14.75758355]
[1742495889860,40.6577112,127.67,127.63,12.77398355]
[1742495890056,7.8379,127.66,127.64,7.8387]
[1742495890769,7.8379,127.66,127.64,7.89779275]
[1742495890770,7.89233583,127.66,127.64,7.89779275]
[1742495891770,0.05443583,127.66,127.64,7.89779275]
[1742495892164,0.05443583,127.66,127.64,0.05909275]
[1742495892371,7.89223583,127.66,127.64,0.05909275]
[1742495892572,0.05443583,127.66,127.64,0.05909275]
[1742495893367,0.05443583,127.66,127.64,7.89809275]
[1742495893564,0.05443583,127.66,127.64,0.05909275]
[1742495894176,7.89223583,127.66,127.64,0.05909275]
[1742495895477,0.05443583,127.66,127.64,7.89779275]
[1742495896371,0.05443583,127.66,127.64,0.05909275]
[1742495896576,0.05443583,127.66,127.65,7.8384]
[1742495901779,3.583e-05,127.66,127.65,7.8384]
[1742495907578,3.583e-05,127.66,127.65,11.9935]
[1742495909786,2.141,127.74,127.65,4.1551]
[1742495909980,30.241,127.74,127.68,19.70359032]
[1742495910688,28.1,127.73,127.68,19.70359032]
[1742495910893,0.05398341,127.72,127.69,0.05200737]
[1742495911293,0.05398341,127.72,127.71,7.8347]
[1742495913991,0.05398341,127.72,127.71,20.42800701]
[1742495914697,0.05398341,127.72,127.71,7.8347]
[1742495920201,12.64729042,127.72,127.69,0.05200737]
[1742495920602,12.64729042,127.72,127.7,7.8351]
[1742495921002,20.48139042,127.72,127.7,7.8351]
[1742495922403,20.48139042,127.72,127.69,0.05200737]
[1742495922404,7.835,127.71,127.69,7.88780737]
[1742495922608,20.42830701,127.71,127.69,0.05200737]
[1742495922795,28.06,127.7,127.69,0.05200737]
[1742495922996,35.8953,127.7,127.69,0.05200737]
[1742495923199,28.06,127.7,127.69,0.05200737]
[1742495924507,28.06,127.7,127.69,7.88800737]
[1742495928203,28.11398341,127.72,127.71,7.8347]
[1742495929610,8.341e-05,127.72,127.71,20.42800701]
[1742495930003,8.341e-05,127.72,127.71,7.8347]
[1742495931608,8.341e-05,127.72,127.7,7.835]
[1742495931911,12.59339042,127.72,127.7,7.835]
[1742495932812,12.59339042,127.72,127.71,7.8347]
[1742495933005,8.341e-05,127.72,127.71,7.8347]
[1742495936821,8.341e-05,127.72,127.7,7.835]
[1742495938321,8.341e-05,127.72,127.71,7.8347]
[1742495939119,12.59339042,127.72,127.69,0.05200737]
[1742495939311,8.341e-05,127.72,127.69,0.05200737]
[1742495940630,8.341e-05,127.72,127.71,7.8347]
[1742495943122,28.08008341,127.72,127.71,7.8347]
[1742495943821,40.67339042,127.72,127.7,7.835]
[1742495944019,48.50749042,127.72,127.7,7.835]
[1742495944828,20.42800701,127.71,127.69,7.88770737]
[1742495945029,12.59330701,127.7,127.69,0.05200737]
[1742495945825,20.42860701,127.7,127.69,0.05200737]
[1742495947332,12.59330701,127.7,127.69,0.05200737]
[1742495947633,12.59330701,127.7,127.69,7.88800737]
[1742495948330,2.0332,127.71,127.7,7.8353]
[1742495948637,28.08008341,127.72,127.69,12.64531438]
[1742495948934,28.08008341,127.72,127.7,7.8348]
[1742495949126,40.67339042,127.72,127.7,7.8348]
[1742495949737,40.67339042,127.72,127.71,7.8347]
[1742495950232,12.59339042,127.72,127.71,7.8347]
[1742495950539,28.06008341,127.72,127.71,7.8347]
[1742495952640,8.341e-05,127.72,127.71,7.8347]
[1742495954336,8.341e-05,127.72,127.69,0.05200737]
[1742495954638,40.65339042,127.72,127.69,0.05200737]
[1742495955139,40.65339042,127.72,127.7,7.8353]
[1742495955339,28.06008341,127.72,127.7,7.8353]
[1742495956542,28.06008341,127.72,127.71,7.8347]
[1742495958544,28.06008341,127.72,127.7,7.835]
[1742495958738,35.89438341,127.72,127.7,7.835]
[1742495959444,7.8349,127.71,127.69,7.88760737]
[1742495960037,48.48779042,127.72,127.69,7.88760737]
[1742495960339,40.65339042,127.72,127.69,7.88760737]
[1742495960745,7.8351,127.71,127.69,7.88760737]
[1742495962146,48.48779042,127.72,127.7,7.8353]
[1742495962345,35.89448341,127.72,127.7,7.8353]
[1742495964948,28.06008341,127.72,127.71,7.8347]
[1742495974559,8.341e-05,127.72,127.71,20.42800701]
[1742495983862,8.341e-05,127.72,127.71,7.8347]
[1742495986867,12.59339042,127.72,127.69,0.05200737]
[1742495987164,8.341e-05,127.72,127.69,0.05200737]
[1742495987359,8.341e-05,127.72,127.71,7.8347]
[1742495988562,8.341e-05,127.72,127.7,7.8351]
[1742495988768,12.59330701,127.71,127.69,0.05200737]
[1742495989468,20.42800701,127.71,127.69,7.88770737]
[1742495989969,12.59330701,127.71,127.69,7.88770737]
[1742495992369,20.42810701,127.71,127.69,7.88770737]
[1742495992859,12.59330701,127.71,127.69,7.88770737]
[1742495993771,20.42810701,127.71,127.69,7.88770737]
[1742495997476,28.06,127.7,127.69,7.88770737]
[1742495997777,28.06,127.7,127.69,0.05200737]
[1742495997969,35.8953,127.7,127.69,0.05200737]
[1742495998164,48.48860701,127.7,127.69,0.05200737]
[1742495998364,40.65330701,127.7,127.64,12.59330701]
[1742495998568,40.65330701,127.7,127.63,286.54]
[1742495998569,20.43020701,127.68,127.66,7.8376]
[1742495998773,40.65330701,127.67,127.63,271.07330701]
[1742495998973,40.65330701,127.67,127.63,258.48]
[1742495999173,20.43120701,127.66,127.63,258.48]
[1742495999369,12.65327372,127.66,127.64,0.0589821]
[1742495999572,12.65327372,127.66,127.65,7.8384]
[1742495999889,0.05996671,127.66,127.65,7.8384]
[1742496005792,0.05996671,127.66,127.64,7.8976821]
[1742496005987,0.05996671,127.66,127.64,0.0589821]
[1742496006496,0.05996671,127.66,127.65,7.8384]
[1742496009399,7.89776671,127.66,127.64,7.8976821]
[1742496009893,20.49107372,127.66,127.64,7.8976821]
[1742496010298,12.59330701,127.65,127.64,7.8976821]
[1742496012491,12.65327372,127.66,127.64,7.8976821]
[1742496013197,20.49107372,127.66,127.64,7.8976821]
[1742496013397,12.65327372,127.66,127.65,7.8384]
[1742496014002,12.65327372,127.66,127.64,7.8976821]
[1742496014193,12.65327372,127.66,127.64,0.0589821]
[1742496014600,20.49107372,127.66,127.64,0.0589821]
[1742496015094,12.65327372,127.66,127.64,0.0589821]
[1742496015300,12.65327372,127.66,127.64,7.8974821]
[1742496015504,40.71327372,127.66,127.64,7.8974821]
[1742496015908,48.55107372,127.66,127.64,7.8974821]
[1742496016290,12.59330701,127.65,127.64,0.0589821]
[1742496016500,7.8399,127.63,127.58,271.15330701]
[1742496016803,48.49320701,127.63,127.58,271.15330701]
[1742496017201,12.59330701,127.61,127.56,14.74590701]
[1742496017601,28.11386013,127.6,127.58,7.8421]
[1742496019005,12.59330701,127.59,127.57,7.90008455]
[1742496019608,12.59330701,127.59,127.58,7.8427]
[1742496024012,40.70716714,127.6,127.59,7.8421]
[1742496025111,40.70716714,127.6,127.58,7.8424]
[1742496026005,40.70716714,127.6,127.57,7.90008455]
[1742496026307,12.59330701,127.59,127.57,0.05698455]
[1742496026505,20.43580701,127.59,127.57,7.90028455]
[1742496026711,12.59330701,127.59,127.57,7.90028455]
[1742496027610,12.59330701,127.59,127.58,7.8427]
[1742496028110,20.43540701,127.59,127.57,0.05698455]
[1742496030013,20.43540701,127.59,127.57,7.90018455]
[1742496030816,7.8427,127.58,127.57,0.05698455]
[1742496032319,20.43570701,127.59,127.57,0.05698455]
[1742496032518,12.59330701,127.59,127.57,0.05698455]
[1742496032817,20.43570701,127.59,127.57,0.05698455]
[1742496033517,20.43570701,127.59,127.57,7.90028455]
[1742496035220,48.54896714,127.6,127.58,7.8427]
[1742496035422,40.70716714,127.6,127.57,0.05698455]
[1742496035617,12.59330701,127.59,127.57,0.05698455]
[1742496036522,20.43570701,127.59,127.57,7.89998455]
[1742496036821,28.11386013,127.6,127.57,0.05698455]
[1742496036822,12.59330701,127.58,127.57,0.05698455]
[1742496037209,20.43600701,127.58,127.57,0.05698455]
[1742496039518,12.59330701,127.59,127.57,0.05698455]
[1742496039823,12.59330701,127.58,127.57,0.05698455]
[1742496040121,20.43600701,127.58,127.57,0.05698455]
[1742496041723,12.59330701,127.58,127.57,0.05698455]
[1742496042323,20.43600701,127.58,127.57,0.05698455]
[1742496046126,12.59330701,127.58,127.57,7.90028455]
[1742496046327,12.59330701,127.58,127.57,0.05698455]
[1742496046629,20.43600701,127.58,127.57,0.05698455]
[1742496050031,12.59330701,127.58,127.57,7.90028455]
[1742496053327,12.59330701,127.58,127.57,0.05698455]
[1742496054733,12.59330701,127.58,127.57,7.90028455]
[1742496055633,12.59330701,127.58,127.57,0.05698455]
[1742496056033,20.43600701,127.58,127.57,0.05698455]
[1742496075245,12.59330701,127.58,127.5,10.77188355]
[1742496075451,1.36454535,127.63,127.5,10.77188355]
[1742496075452,12.59330701,127.52,127.5,10.77188355]
[1742496075645,40.67330701,127.52,127.5,10.77188355]
[1742496075957,28.08,127.52,127.5,10.77188355]
[1742496076255,28.08,127.52,127.5,18.61918355]
[1742496076457,28.13852722,127.52,127.5,18.64276721]
[1742496078061,28.13852722,127.52,127.5,7.87088366]
[1742496078555,28.13852722,127.52,127.51,7.847]
[1742496078967,28.13852722,127.52,127.5,0.02358366]
[1742496079168,28.13852722,127.52,127.51,7.847]
[1742496079866,28.13852722,127.52,127.5,7.87088366]
[1742496080562,12.59330701,127.51,127.5,0.02358366]
[1742496082165,12.59330701,127.51,127.5,7.87118366]
[1742496084561,12.59330701,127.51,127.5,0.02358366]
[1742496084765,12.59330701,127.51,127.45,332.11105427]
[1742496084766,21.87617164,127.51,127.45,43.12555427]
[1742496084962,12.59330701,127.46,127.45,43.12555427]
[1742496085163,48.52340701,127.46,127.44,86.94938486]
[1742496085371,12.59330701,127.45,127.44,86.94938486]
[1742496085870,12.59330701,127.45,127.4,32.50407915]
[1742496085871,20.44400701,127.45,127.4,119.64979969]
[1742496086063,12.59330701,127.44,127.4,119.64979969]
[1742496086265,28.08,127.43,127.4,132.2431067]
[1742496086465,28.13749259,127.43,127.4,132.2431067]
[1742496086666,28.13749259,127.43,127.42,7.852]
[1742496094867,0.05749259,127.43,127.42,7.852]
[1742496105481,0.05749259,127.43,127.42,20.44530701]
[1742496106773,0.05749259,127.43,127.42,7.852]
[1742496111783,0.05749259,127.43,127.4,12.59330701]
[1742496111979,0.05749259,127.43,127.39,16.86150701]
[1742496112286,7.90959259,127.43,127.41,7.8529]
[1742496115189,0.05749259,127.43,127.41,7.8529]
[1742496115586,0.05749259,127.43,127.42,7.8526]
[1742496124191,0.05749259,127.43,127.41,7.8529]
[1742496124691,7.90949259,127.43,127.41,7.8529]
[1742496124990,20.5027996,127.43,127.41,7.8529]
[1742496125494,7.8526,127.42,127.4,7.8536]
[1742496125692,28.1,127.41,127.4,7.8536]
[1742496129091,28.1,127.41,127.39,7.8541]
[1742496129287,28.1,127.41,127.38,12.59330701]
[1742496129688,28.1,127.41,127.39,7.8539]
[1742496132003,35.9532,127.41,127.39,7.8539]
[1742496133405,48.54650701,127.41,127.38,7.8547]
[1742496133706,48.59836692,127.41,127.38,7.8547]
[1742496135207,7.8539,127.4,127.38,7.8547]
[1742496135602,48.59866692,127.41,127.39,7.8543]
[1742496135802,36.00535991,127.41,127.39,7.8543]
[1742496137509,28.15185991,127.41,127.39,7.8543]
[1742496138603,36.00505991,127.41,127.39,7.8543]
[1742496140404,48.59836692,127.41,127.38,7.8547]
[1742496140804,48.59836692,127.41,127.36,16.68680701]
[1742496141005,36.00505991,127.41,127.39,7.854]
[1742496141506,7.8538,127.4,127.38,7.8547]
[1742496144909,36.00535991,127.41,127.39,7.8544]
[1742496145210,28.15185991,127.41,127.37,12.59330701]
[1742496146605,28.15185991,127.41,127.4,7.8538]
[1742496147813,28.15185991,127.41,127.39,7.8541]
[1742496148111,28.15185991,127.41,127.37,12.59330701]
[1742496149113,28.15185991,127.41,127.4,7.8538]
[1742496149715,0.05185991,127.41,127.4,7.8538]
[1742496153019,12.64516692,127.41,127.37,12.59330701]
[1742496153616,12.59330701,127.4,127.36,16.68680701]
[1742496154614,20.44740701,127.4,127.37,7.855]
[1742496155210,28.1,127.39,127.37,7.855]
[1742496155415,28.1,127.39,127.38,7.855]
[1742496161519,40.74516692,127.41,127.37,12.59330701]
[1742496161818,28.15185991,127.41,127.37,12.59330701]
[1742496162021,28.15185991,127.41,127.4,7.8538]
[1742496162716,28.15185991,127.41,127.39,7.8541]
[1742496163623,28.15185991,127.41,127.37,12.59330701]
[1742496164820,28.15185991,127.41,127.39,7.8539]
[1742496165031,36.00525991,127.41,127.39,7.8539]
[1742496165632,48.59856692,127.41,127.39,7.8539]
[1742496166734,40.74516692,127.41,127.39,7.8539]
[1742496166935,28.15185991,127.41,127.37,12.59330701]
[1742496167839,28.15185991,127.41,127.4,7.8538]
[1742496168736,28.15185991,127.41,127.37,12.59330701]
[1742496169127,28.15185991,127.41,127.39,7.8541]
[1742496169727,36.00515991,127.41,127.39,7.8541]
[1742496173239,36.00515991,127.41,127.36,12.59330701]
[1742496173440,28.15185991,127.41,127.36,12.59330701]
[1742496175637,40.74516692,127.41,127.36,12.59330701]
[1742496177339,48.59866692,127.41,127.39,7.8544]
[1742496180039,48.59866692,127.41,127.38,7.8547]
[1742496180245,48.59866692,127.41,127.36,12.59330701]
[1742496180744,40.74516692,127.41,127.36,12.59330701]
[1742496181347,48.59866692,127.41,127.39,7.8542]
[1742496181551,40.74516692,127.41,127.36,12.59330701]
[1742496181851,7.8538,127.4,127.38,7.8548]
[1742496182347,40.74516692,127.41,127.38,7.8548]
[1742496183354,7.854,127.4,127.38,7.8548]
[1742496183555,40.74516692,127.41,127.37,7.8554]
[1742496183947,7.8547,127.39,127.37,7.8554]
[1742496185756,7.8547,127.39,127.38,7.855]
[1742496185957,40.69330701,127.41,127.35,12.59330701]
[1742496186259,0.0580483,127.4,127.35,12.59330701]
[1742496186452,12.59330701,127.39,127.33,263.3685]
[1742496186758,2.1845,127.45,127.34,12.59330701]
[1742496186759,40.67330701,127.38,127.34,12.59330701]
[1742496186949,28.08,127.37,127.33,304.04180701]
[1742496187151,28.13672972,127.37,127.35,7.8565]
[1742496188164,35.99242972,127.37,127.35,7.8565]
[1742496188451,48.58573673,127.37,127.35,7.8565]
[1742496189153,12.59330701,127.36,127.32,10.92426008]
[1742496189358,12.59330701,127.35,127.32,10.92426008]
[1742496189559,12.59330701,127.36,127.32,10.92426008]
[1742496189857,20.44980701,127.36,127.33,7.8576]
[1742496190260,12.59330701,127.36,127.32,10.92426008]
[1742496190450,12.59330701,127.35,127.32,10.92426008]
[1742496191060,20.45020701,127.35,127.32,7.8586]
[1742496192152,7.8575,127.34,127.32,7.8586]
[1742496192361,12.59330701,127.33,127.29,60.44567349]
[1742496192551,20.45180701,127.33,127.29,60.44567349]
[1742496192752,20.45180701,127.33,127.3,7.8596]
[1742496192955,12.59330701,127.32,127.29,47.85236648]
[1742496193155,12.59330701,127.33,127.29,60.44567349]
[1742496193556,12.59330701,127.33,127.31,7.8588]
[1742496195951,12.59330701,127.33,127.3,7.8596]
[1742496197561,12.59330701,127.33,127.31,7.8593]
[1742496197762,12.59330701,127.32,127.31,7.8593]
[1742496197955,12.59330701,127.33,127.28,12.59330701]
[1742496198357,12.64941081,127.32,127.27,40.67330701]
[1742496198564,12.59330701,127.31,127.27,40.67330701]
[1742496198765,12.59330701,127.31,127.3,7.86]
[1742496199466,12.64941081,127.32,127.28,12.59330701]
[1742496199668,0.0561038,127.32,127.28,12.59330701]
[1742496201261,0.0561038,127.32,127.31,7.8593]
[1742496204969,0.0561038,127.32,127.31,20.45260701]
[1742496207369,1.36703789,127.4,127.38,7.8545]
[1742496207584,40.69330701,127.39,127.38,7.8545]
[1742496208273,40.69330701,127.39,127.37,7.8553]
[1742496208572,12.59330701,127.38,127.37,7.91072539]
[1742496213266,40.74559554,127.39,127.38,7.855]
[1742496216475,28.15228853,127.39,127.38,7.855]
[1742496216672,0.05228853,127.39,127.38,7.855]
[1742496219377,8.853e-05,127.39,127.38,20.44830701]
[1742496219577,8.853e-05,127.39,127.38,48.52830701]
[1742496221475,8.853e-05,127.39,127.38,35.935]
[1742496222274,8.853e-05,127.39,127.38,48.52830701]
[1742496222780,8.853e-05,127.39,127.38,20.44830701]
[1742496223076,8.853e-05,127.39,127.38,7.855]
[1742496223978,8.853e-05,127.39,127.38,20.44830701]
[1742496231285,28.08,127.45,127.44,7.8513]
[1742496231780,20.44380701,127.46,127.44,7.8513]
[1742496232182,12.59330701,127.46,127.44,7.8513]
[1742496232382,40.71211386,127.46,127.44,7.90288772]
[1742496232785,48.56221386,127.46,127.44,7.90288772]
[1742496233391,7.8507,127.45,127.44,0.05158772]
[1742496233889,48.56261386,127.46,127.44,0.05158772]
[1742496234187,12.59330701,127.45,127.44,0.05158772]
[1742496235085,20.44400701,127.45,127.44,0.05158772]
[1742496235885,7.8527,127.42,127.38,12.59330701]
[1742496236092,20.44600701,127.42,127.38,40.65330701]
[1742496236390,12.59330701,127.41,127.39,7.8541]
[1742496236587,20.44700701,127.41,127.39,7.8541]
[1742496236986,20.44740701,127.4,127.38,7.8548]
[1742496237287,0.05044283,127.41,127.39,0.05603828]
[1742496237489,12.59330701,127.4,127.39,0.05603828]
[1742496239195,20.44710701,127.4,127.39,0.05603828]
[1742496239489,48.50710701,127.4,127.39,0.05603828]
[1742496241386,40.65330701,127.4,127.33,12.59330701]
[1742496241590,12.59330701,127.37,127.33,12.59330701]
[1742496241788,12.59330701,127.37,127.34,7.8571]
[1742496241988,20.44920701,127.37,127.32,44.85790701]